Cogmind - Beta 13 @@@ ROGUE MODE // 2024.04.02 @ 13:20:54 Player: Delta-Psyco Result: Destroyed by S-27 Virus with Autogun Performance ------------- Evolutions (3) 1500 Regions Visited (10) 2000 Robots Destroyed (64) 320 Value Destroyed (1674) 1674 Prototype IDs (7) 140 Alien Tech Used (0) 0 Bonus (0) 0 TOTAL SCORE: 5634 Bonus ------- None Cogmind --------- Core Integrity 0/700 Matter 5/300 Energy 100/100 System Corruption 20% Temperature Cool (1) Movement Flying (35) Location -7/Lower Caves Parts ------- > --- POWER (1) -------- (None) > --- PROPULSION (4) --- Cesium-ion Thruster > --- UTILITY (4) ------ Advanced Targeting Computer Hacking Suite > --- WEAPON (4) ------- (None) > --- INVENTORY (5) ---- Cesium-ion Thruster Weight Redist. System Matter Filter Improved Dynamic Insulation System Peak State ------------ > --- POWER ------------ Light Nuclear Core > --- PROPULSION ------- Armored Treads Improved VTOL Module Improved VTOL Module Improved VTOL Module > --- UTILITY ---------- Improved Heat Sink Advanced Heat Sink Small Storage Unit Hacking Suite > --- WEAPON ----------- Precision Shock Rifle Precision Shock Rifle Precision Shock Rifle Precision Shock Rifle > --- INVENTORY -------- Armored Treads Improved VTOL Module Light Assault Rifle Light Assault Rifle Light Assault Rifle Light Assault Rifle [Rating: 51] Favorites ----------- Power Light Nuclear Core Engine Improved Ion Engine Power Core Light Nuclear Core Propulsion Light Treads Treads Light Treads Leg Improved Carbon-fiber Leg Wheel Armored Wheel Flight Unit Improved VTOL Module Utility Small Storage Unit Device Advanced Heat Sink Storage Small Storage Unit Processor Advanced Targeting Computer Hackware Hacking Suite Protection Hardened Light Armor Plating Weapon Heavy Assault Rifle Energy Gun Precision Shock Rifle Ballistic Gun Heavy Assault Rifle Special Weapon Remote Datajack Slashing Weapon Katana Build | -11 -10 -9 -9 -9 -8 -8 -7 -7 -7 -7 ------- Run | Yrd Mat Mat Min Exi Min Mat Fac Was Fac Low Slots Evolved 6 | . . 2 . . . 2 2 . . . Power . | . . . . . . . . . . . Propulsion 2 | . . . . . . . 2 . . . Utility 2 | . . . . . . 2 . . . . Weapon 2 | . . 2 . . . . . . . . Parts Attached 74 | 7 7 7 . 3 8 15 21 2 4 . Power 5 | 1 1 . . . 2 . 1 . . . Engine 2 | 1 1 . . . . . . . . . Core 3 | . . . . . 2 . 1 . . . Reactor . | . . . . . . . . . . . Propulsion 20 | 2 2 2 . . 1 3 6 2 2 . Treads 6 | . . 2 . . 1 3 . . . . Leg 1 | . . . . . . . . . 1 . Wheel 4 | 2 2 . . . . . . . . . Hover . | . . . . . . . . . . . Flight 9 | . . . . . . . 6 2 1 . Utility 21 | 1 3 . . 3 1 4 8 . 1 . Device 9 | . 1 . . . 1 1 5 . 1 . Storage 3 | 1 . . . 2 . . . . . . Processor 3 | . 1 . . . . . 2 . . . Hackware 2 | . . . . . . 1 1 . . . Protection 4 | . 1 . . 1 . 2 . . . . Artifact . | . . . . . . . . . . . Weapon 28 | 3 1 5 . . 4 8 6 . 1 . Energy Gun 13 | 2 . 2 . . 2 7 . . . . Energy Cannon . | . . . . . . . . . . . Ballistic Gun 13 | 1 1 3 . . 1 . 6 . 1 . Ballistic Cannon . | . . . . . . . . . . . Launcher . | . . . . . . . . . . . Special Weapon 1 | . . . . . . 1 . . . . Impact Weapon . | . . . . . . . . . . . Slashing Weapon 1 | . . . . . 1 . . . . . Piercing Weapon . | . . . . . . . . . . . Special Melee Weapon . | . . . . . . . . . . . Unidentified Prototypes 2 | . . . . . . 1 1 . . . Corrupted Parts 3 | . 1 . . . . . 2 . . . System Corruption 11 | . 2 . . . . . 9 . . . Parts Lost 19 | . 1 . . . 4 2 6 3 2 1 Power 4 | . . . . . 1 . 3 . . . Propulsion 5 | . 1 . . . . . . 3 1 . Utility 2 | . . . . . . . 1 . . 1 Weapon 8 | . . . . . 3 2 2 . 1 . Highest Loss Streak 3 | . 1 . . . 2 2 3 3 2 3 To Critical Strikes . | . . . . . . . . . . . Average Slot Usage (%) 89 | . 97 99 100 99 95 99 78 52 31 . Engine 3 | . 14 11 11 11 . . . . . . Core 4 | . . . . . 10 9 4 . . . Treads 13 | . . 7 22 22 22 18 . . . . Wheel 3 | . 26 14 . . . . . . . . Flight 2 | . . . . . . . 23 10 . . Device 6 | . 2 . . . 5 16 6 . . . Storage 8 | . 14 11 11 10 11 9 . . . . Processor 1 | . 3 . . . . . 4 14 7 . Hackware 5 | . . . . . . 7 11 15 15 . Protection 4 | . 6 11 11 10 5 2 . . . . Energy Gun 11 | . 2 11 . . 10 31 . . . . Ballistic Gun 20 | . 25 31 44 44 26 1 25 12 3 . Naked Turns . | . . . . . . . . . . . Heaviest Build 28 | 11 19 27 27 27 26 28 17 6 3 . Greatest Support 40 | 26 26 40 40 40 40 40 20 10 18 5 Greatest Overweight (x) 1 | . . 1 . . . . . . . . Average Overweight (x) . | . . . . . . . . . . . Largest Inventory Capacity 35 | 8 8 8 8 35 8 8 8 5 5 5 Average Capacity 7 | 6 8 8 8 7 8 8 5 5 5 5 Most Carried 8 | 5 6 8 8 8 8 8 7 5 5 4 Average Carried 6 | 1 3 6 8 7 7 7 4 4 4 4 Final Capacity 8 | 8 8 8 8 8 8 8 5 5 5 5 Final Carried 8 | 1 6 8 8 8 7 8 5 5 4 4 Class Distribution -------------------- 31% | Scavenger-Tank 19% | Scavenger-Gunner 14% | Gunner 8% | Mutant 7% | Hacker-Mutant 6% | Scavenger-Sprinter 5% | Hacker-Sprinter 3% | Tank Dominant Class ---------------- Mutant | -10/Materials Scavenger-Tank | -9/Materials Scavenger-Tank | -9/Mines Scavenger-Tank | -9/Exiles Scavenger-Gunner | -8/Mines Gunner | -8/Materials Scavenger-Sprinter | -7/Factory Hacker-Sprinter | -7/Waste Hacker-Mutant | -7/Factory Hacker-Mutant | -7/Lower Caves Resources | -11 -10 -9 -9 -9 -8 -8 -7 -7 -7 -7 ----------- Run | Yrd Mat Mat Min Exi Min Mat Fac Was Fac Low Matter Collected 1411 | 162 276 239 50 22 341 231 90 . . . Remotely . | . . . . . . . . . . . Salvage Created 2353 | . 343 239 54 . 422 1161 134 . . . Parts 150 | . 24 26 1 . 22 61 16 . . . Haulers Intercepted 2 | . 1 . . . . 1 . . . . Recyclers Shooed 4 | . 1 . . . 3 . . . . . Parts Field Recycled . | . . . . . . . . . . . Retrieved Matter . | . . . . . . . . . . . Parts Self-Destructed . | . . . . . . . . . . . Prevented . | . . . . . . . . . . . Kills | -11 -10 -9 -9 -9 -8 -8 -7 -7 -7 -7 ------- Run | Yrd Mat Mat Min Exi Min Mat Fac Was Fac Low Combat Hostiles Destroyed 45 | . 7 3 1 . 9 21 4 . . . Guns 43 | . 7 3 1 . 9 20 3 . . . AOE 2 | . . . . . . 1 1 . . . Classes Destroyed 11 | . 4 2 . . 2 2 1 . . . Worker 2 | . . . . . . 2 . . . . Builder 1 | . . . . . . 1 . . . . Hauler 2 | . 1 . . . . 1 . . . . Recycler 3 | . . . . . 1 2 . . . . Operator 1 | . . 1 . . . . . . . . Watcher 10 | . 2 2 . . . 5 1 . . . Swarmer 21 | . 3 . . . 4 11 3 . . . Grunt 14 | . 4 . 1 . 4 5 . . . . Duelist 2 | . . . . . 1 1 . . . . Sentry 7 | . . 3 . . . 4 . . . . Programmer 1 | . . . . . . . 1 . . . Best Kill Streak 7 | . 4 1 1 . 4 7 3 . . . Combat Bots Only 7 | . 3 1 1 . 4 7 3 . . . Max Kills in Single Turn 3 | . 1 1 1 . 2 3 2 . . . Gunslinging 1 | . . . . . 1 1 1 . . . Exploded 1 | . . . . . . 1 1 . . . Melee . | . . . . . . . . . . . Uniques/NPCs Destroyed . | . . . . . . . . . . . Combat | -11 -10 -9 -9 -9 -8 -8 -7 -7 -7 -7 -------- Run | Yrd Mat Mat Min Exi Min Mat Fac Was Fac Low Hostile Shots Fired 343 | . 56 8 3 . 70 75 58 3 67 3 Missed 113 | . 17 3 1 . 11 23 28 . 29 1 Damage Taken 3643 | . 422 71 31 . 945 673 770 121 580 30 Core 903 | . 57 12 . . 71 55 247 121 326 14 Absorbed by Shields . | . . . . . . . . . . . Redirected to Shielding 31 | . . . . . . 31 . . . . Regen/Repaired (Parts) 47 | . . . . . . . 47 . . . Core Remaining (%) 86 | 100 77 . . . 79 90 . . . . Volleys Fired 178 | . 49 13 3 . 35 53 20 5 . . Largest 4 | . 2 4 4 . 4 4 4 3 . . Hottest 264 | . 60 130 89 . 89 264 88 68 . . Shots Fired 503 | . 98 49 12 . 102 168 67 7 . . Gun 503 | . 98 49 12 . 102 168 67 7 . . Cannon . | . . . . . . . . . . . Launcher . | . . . . . . . . . . . Special . | . . . . . . . . . . . Kinetic 345 | . 89 32 12 . 102 36 67 7 . . Thermal 65 | . . 7 . . . 58 . . . . Explosive . | . . . . . . . . . . . Electromagnetic 93 | . 9 10 . . . 74 . . . . Robot Hit Streak 10 | . 6 4 5 . 10 8 4 9 . . Robot Miss Streak 7 | . 5 4 2 . 4 4 7 1 . . Penetration Max . | . . . . . . . . . . . Secondary Targets 12 | . 2 . . . 4 5 1 . . . Max Gunslinging Chain 1 | . 1 . . . 1 1 1 . . . Shots Hit Robots 283 | . 56 21 7 . 66 99 28 6 . . Core Hits 129 | . 22 14 4 . 22 49 17 1 . . Critical Kills . | . . . . . . . . . . . Critical Parts Destroyed . | . . . . . . . . . . . Critical Strikes 3 | . . . . . . 2 . 1 . . Burn 1 | . . . . . . 1 . . . . Destroy 1 | . . . . . . . . 1 . . Corrupt 1 | . . . . . . 1 . . . . Melee Attacks . | . . . . . . . . . . . Impact . | . . . . . . . . . . . Slashing . | . . . . . . . . . . . Piercing . | . . . . . . . . . . . Sneak Attacks . | . . . . . . . . . . . Combat Hostiles . | . . . . . . . . . . . Follow-up Attacks . | . . . . . . . . . . . Damage Inflicted 4305 | . 505 211 92 . 967 2088 343 99 . . Guns 3917 | . 505 211 92 . 967 1774 269 99 . . Cannons . | . . . . . . . . . . . Explosions 388 | . . . . . . 314 74 . . . Melee . | . . . . . . . . . . . Ramming . | . . . . . . . . . . . Kinetic 2249 | . 431 143 92 . 967 248 269 99 . . Thermal 969 | . . 25 . . . 904 40 . . . Explosive . | . . . . . . . . . . . Electromagnetic 1087 | . 74 43 . . . 936 34 . . . Impact . | . . . . . . . . . . . Slashing . | . . . . . . . . . . . Piercing . | . . . . . . . . . . . Highest Corruption 20 | . 2 . . . . 2 13 19 20 20 Average Corruption 8 | . 2 . . . . 2 9 17 19 20 Corruption Purged . | . . . . . . . . . . . Corruption Blocked . | . . . . . . . . . . . Effects 58 | . 6 . . . . 8 20 7 17 . Message Errors 17 | . 1 . . . . 2 7 1 6 . Matter Fused 11 | . 3 . . . . 1 2 1 4 . Heat Flow Errors 10 | . 1 . . . . 3 3 . 3 . Energy Discharges 4 | . . . . . . . 2 2 . . Data Loss (minor) 2 | . 1 . . . . 1 . . . . Data Loss (major) 5 | . . . . . . . 5 . . . Misfires 1 | . . . . . . 1 . . . . Alerts 1 | . . . . . . . . 1 . . Misdirections 5 | . . . . . . . 1 . 4 . Weapon Failures 2 | . . . . . . . . 2 . . Overload Shots . | . . . . . . . . . . . Overflow Damage . | . . . . . . . . . . . Projectiles . | . . . . . . . . . . . Explosions . | . . . . . . . . . . . Melee . | . . . . . . . . . . . Knockbacks . | . . . . . . . . . . . Impact . | . . . . . . . . . . . Kinetic . | . . . . . . . . . . . Secondary . | . . . . . . . . . . . Self-Inflicted Damage 72 | . . . . . . . 72 . . . Shots 2 | . . . . . . . 2 . . . Rammed . | . . . . . . . . . . . Targets Rammed 1 | . . . . . . . . . 1 . Kicked 1 | . . . . . . . . . 1 . Crushed . | . . . . . . . . . . . Highest Temperature 327 | . 268 272 81 . 327 305 190 8 239 . Average Temperature 100 | . 72 92 35 . 134 128 60 7 94 . Received Heat Transfer 1248 | . 183 18 18 . 423 261 72 . 273 . Effects 5 | . . . . . 3 2 . . . . Interference 5 | . . . . . 3 2 . . . . Siege Activations . | . . . . . . . . . . . Robots Corrupted 1 | . . . . . . 1 . . . . Combat Hostiles . | . . . . . . . . . . . Parts Fried 12 | . . . . . . 12 . . . . Impact Corruptions . | . . . . . . . . . . . Robots Melted . | . . . . . . . . . . . Combat Hostiles . | . . . . . . . . . . . Parts Melted 3 | . . . . . . 3 . . . . Heat Transferred 1943 | . . 74 . . . 1819 50 . . . Parts Sabotaged . | . . . . . . . . . . . Parts Stolen . | . . . . . . . . . . . Parts Stripped . | . . . . . . . . . . . Power Chain Reactions 6 | . . . . . . 5 1 . . . Alert | -11 -10 -9 -9 -9 -8 -8 -7 -7 -7 -7 ------- Run | Yrd Mat Mat Min Exi Min Mat Fac Was Fac Low Peak Influence 350 | . 271 283 154 . 175 350 341 94 105 . Initial 128 | . . 114 109 . . . 128 79 30 . Average 142 | . 145 201 150 . 45 188 203 71 74 . Maximum Alert Level 1 | . 1 1 . . . 1 1 . . . Low Security (%) 70 | 100 75 44 100 . 100 54 44 100 100 . Level 1 29 | . 24 55 . . . 45 55 . . . Level 2 . | . . . . . . . . . . . Level 3 . | . . . . . . . . . . . Level 4 . | . . . . . . . . . . . Level 5 . | . . . . . . . . . . . High Security . | . . . . . . . . . . . Max Security . | . . . . . . . . . . . Squads Dispatched 14 | . 4 2 . . . . 6 . 2 . Investigation 8 | . 2 1 . . . . 4 . 1 . Extermination 3 | . . . . . . . 2 . 1 . Reinforcement 3 | . 2 1 . . . . . . . . Assault . | . . . . . . . . . . . Garrison . | . . . . . . . . . . . Intercept . | . . . . . . . . . . . Searches Triggered . | . . . . . . . . . . . Construction Impeded . | . . . . . . . . . . . Haulers Reinforced . | . . . . . . . . . . . Active Scanning Responses . | . . . . . . . . . . . Cargo Convoy Interrupts . | . . . . . . . . . . . Stealth | -11 -10 -9 -9 -9 -8 -8 -7 -7 -7 -7 --------- Run | Yrd Mat Mat Min Exi Min Mat Fac Was Fac Low Distress Signals 7 | . 2 2 . . . 3 . . . . Communications Jammed . | . . . . . . . . . . . Distress Signals . | . . . . . . . . . . . Times Spotted 113 | . 13 7 3 . 10 28 25 6 18 3 Peak Tracking Total 15 | . 4 2 3 . 4 4 7 6 15 3 Tactical Retreats 10 | . 2 . . . . 1 5 . 2 . Traps | -11 -10 -9 -9 -9 -8 -8 -7 -7 -7 -7 ------- Run | Yrd Mat Mat Min Exi Min Mat Fac Was Fac Low Traps Triggered 8 | . 2 . . . . 1 5 . . . Indirectly . | . . . . . . . . . . . Trap Hack Attempts . | . . . . . . . . . . . Triggered . | . . . . . . . . . . . Disarmed . | . . . . . . . . . . . Reprogrammed . | . . . . . . . . . . . Reused . | . . . . . . . . . . . Traps Extracted . | . . . . . . . . . . . Installed . | . . . . . . . . . . . Triggered 1 | . . . . . . 1 . . . . Machines | -11 -10 -9 -9 -9 -8 -8 -7 -7 -7 -7 ---------- Run | Yrd Mat Mat Min Exi Min Mat Fac Was Fac Low Machines Disabled 6 | . . . 1 . . 3 2 . . . Max in Single Turn 2 | . . . 1 . . 1 2 . . . Machines Repaired . | . . . . . . . . . . . Machines Dismantled . | . . . . . . . . . . . Machines Sabotaged . | . . . . . . . . . . . Overloaded Fab Kills . | . . . . . . . . . . . Hacking | -11 -10 -9 -9 -9 -8 -8 -7 -7 -7 -7 --------- Run | Yrd Mat Mat Min Exi Min Mat Fac Was Fac Low Machines Accessed 14 | . . . . 1 . 2 9 . 2 . Terminals 7 | . . . . . . 1 5 . 1 . Fabricators 2 | . . . . . . . 2 . . . Repair Stations 1 | . . . . . . . 1 . . . Recycling Units 1 | . . . . . . . . . 1 . Scanalyzers 2 | . . . . . . 1 1 . . . Garrison Access . | . . . . . . . . . . . Total Hacks 62 | . . . . 23 . 11 22 . 6 . Successful 49 | . . . . 23 . 9 12 . 5 . Failed 12 | . . . . . . 1 10 . 1 . Catastrophic . | . . . . . . . . . . . Database Lockouts 1 | . . . . . . 1 . . . . Manual . | . . . . . . . . . . . Terminals 17 | . . . . . . 6 7 . 4 . Fabricators 7 | . . . . . . . 7 . . . Repair Stations 5 | . . . . . . . 5 . . . Recycling Units 2 | . . . . . . . . . 2 . Scanalyzers 8 | . . . . . . 5 3 . . . Garrison Access . | . . . . . . . . . . . Terminal Hacks 36 | . . . . 23 . 4 6 . 3 . Record 27 | . . . . 23 . 4 . . . . Prototype ID Bank 1 | . . . . . . . 1 . . . Open DSF 1 | . . . . . . . 1 . . . Branch Access Points 1 | . . . . . . . 1 . . . Alert Level 2 | . . . . . . . 1 . 1 . Unreport Threat 1 | . . . . . . . 1 . . . Locate Traps 1 | . . . . . . . . . 1 . Patrol Status 1 | . . . . . . . 1 . . . Zone Layout 1 | . . . . . . . . . 1 . Fabricator Hacks 2 | . . . . . . . 2 . . . Load Schematic 1 | . . . . . . . 1 . . . Build 1 | . . . . . . . 1 . . . Repair Station Hacks 3 | . . . . . . . 3 . . . Scan Component 2 | . . . . . . . 2 . . . Repair 1 | . . . . . . . 1 . . . Recycling Unit Hacks 2 | . . . . . . . . . 2 . Report Inventory 1 | . . . . . . . . . 1 . Retrieve Components 1 | . . . . . . . . . 1 . Scanalyzer 6 | . . . . . . 5 1 . . . Insert Component 3 | . . . . . . 2 1 . . . Analyze 3 | . . . . . . 3 . . . . Garrison Access Hacks . | . . . . . . . . . . . Unauthorized Hacks . | . . . . . . . . . . . Terminals . | . . . . . . . . . . . Fabricators . | . . . . . . . . . . . Repair Stations . | . . . . . . . . . . . Recycling Units . | . . . . . . . . . . . Scanalyzers . | . . . . . . . . . . . Garrison Access . | . . . . . . . . . . . Data Cores Recovered 1 | . . 1 . . . . . . . . Used . | . . . . . . . . . . . Hacking Detections 8 | . . . . . . 1 5 . 2 . Full Trace Events 5 | . . . . . . . 4 . 1 . Feedback Events . | . . . . . . . . . . . Feedback Blocked . | . . . . . . . . . . . Robot Schematics Acquired . | . . . . . . . . . . . Robots Built . | . . . . . . . . . . . Authchips . | . . . . . . . . . . . Time . | . . . . . . . . . . . Total Robot Build Rating . | . . . . . . . . . . . Part Schematics Acquired 2 | . . . . . . 2 . . . . Parts Built 2 | . . . . . . . 2 . . . Authchips . | . . . . . . . . . . . Time 47 | . . . . . . . 47 . . . Total Part Build Rating 10 | . . . . . . . 10 . . . Parts Repaired 1 | . . . . . . . 1 . . . Time 38 | . . . . . . . 38 . . . Parts Recycled . | . . . . . . . . . . . Recycled Matter . | . . . . . . . . . . . Retrieved Matter . | . . . . . . . . . . . Retrieved Components . | . . . . . . . . . . . Parts Scanalyzed 3 | . . . . . . 2 1 . . . Part Schematics Acquired 2 | . . . . . . 2 . . . . Parts Damaged . | . . . . . . . . . . . Bothacking | -11 -10 -9 -9 -9 -8 -8 -7 -7 -7 -7 ------------ Run | Yrd Mat Mat Min Exi Min Mat Fac Was Fac Low Used RIF Installer . | . . . . . . . . . . . Robots Hacked . | . . . . . . . . . . . Non-combat . | . . . . . . . . . . . Combat . | . . . . . . . . . . . Robot Hacks Applied . | . . . . . . . . . . . Relay Couplers Released . | . . . . . . . . . . . Fabnet Peak Effective % . | . . . . . . . . . . . Robots Rewired . | . . . . . . . . . . . Allies Hacked . | . . . . . . . . . . . Hacks Repelled . | . . . . . . . . . . . Allies | -11 -10 -9 -9 -9 -8 -8 -7 -7 -7 -7 -------- Run | Yrd Mat Mat Min Exi Min Mat Fac Was Fac Low Total Allies 1 | . . . . . . . . 1 . . Largest Group 1 | . . . . . . . . 1 . . Highest-Rated Group 31 | . . . . . . . . 31 . . Highest-Rated Ally 31 | . . . . . . . . 31 . . Total Orders . | . . . . . . . . . . . Ally Attacks 8 | . . . . . . . . 8 . . Total Damage 126 | . . . . . . . . 126 . . Kills . | . . . . . . . . . . . Allies Corrupted . | . . . . . . . . . . . Allies Melted . | . . . . . . . . . . . Intel | -11 -10 -9 -9 -9 -8 -8 -7 -7 -7 -7 ------- Run | Yrd Mat Mat Min Exi Min Mat Fac Was Fac Low Robot Analysis Total . | . . . . . . . . . . . Derelict Logs Recovered 1 | . . . 1 . . . . . . . Drone Launches . | . . . . . . . . . . . Drone Recoveries . | . . . . . . . . . . . Exploration | -11 -10 -9 -9 -9 -8 -8 -7 -7 -7 -7 ------------- Run | Yrd Mat Mat Min Exi Min Mat Fac Was Fac Low Turns Passed 4774 | 37 373 322 123 771 822 1316 562 81 363 4 Spaces Moved 4073 | 30 246 233 71 472 429 650 1326 150 456 10 Core 298 | 10 . . . . . . . 55 233 . Treads 1683 | . . 61 71 472 429 650 . . . . Legs 179 | . . . . . . . . . 179 . Wheels 438 | 20 246 172 . . . . . . . . Hover . | . . . . . . . . . . . Flight 1475 | . . . . . . . 1326 95 44 10 Fastest Speed 26 | 50 90 90 160 160 160 160 26 32 35 35 Average Speed 96 | 76 90 109 160 160 160 165 28 38 76 35 Slowest Speed 240 | 90 100 240 160 160 160 170 32 50 120 35 Overloaded Moves . | . . . . . . . . . . . Propulsion Burnouts . | . . . . . . . . . . . Robots Hopped 12 | . . . . . . . 7 5 . . Cave-ins Triggered . | . . . . . . . . . . . Exploration Rate (%) 41 | 3 47 19 33 78 70 63 33 88 18 2 Regions Visited 10 Branch Regions 4 Pre-discovered Areas 1 | . . . . 1 . . . . . . Known Exits Taken 2 | . . . 1 . . . . . 1 . Unknown Exits Taken 6 | 1 1 1 . 1 1 1 . . . . Scrap Searched 1 | . . . . . 1 . . . . . Spaces Dug . | . . . . . . . . . . . Terrain Destroyed 20 | . . . . . . 14 6 . . . Melee . | . . . . . . . . . . . Projectile . | . . . . . . . . . . . AOE 20 | . . . . . . 14 6 . . . Terrain Rammed . | . . . . . . . . . . . Walls Destroyed . | . . . . . . . . . . . Machines Disabled . | . . . . . . . . . . . Actions | -11 -10 -9 -9 -9 -8 -8 -7 -7 -7 -7 --------- Run | Yrd Mat Mat Min Exi Min Mat Fac Was Fac Low Total 4608 | 43 315 277 74 494 492 787 1481 161 474 10 Wait 92 | . 1 3 1 . 8 19 54 6 . . Move 4042 | 29 245 232 70 471 428 649 1312 141 455 10 Hop 10 | . . . . . . . 7 3 . . Pick Up 110 | 7 10 13 . 11 8 28 23 3 7 . Fast Attach . | . . . . . . . . . . . Attach 53 | 6 3 4 . 3 5 10 16 2 4 . Detach 10 | . 1 . . 1 . . 7 . 1 . Swap 22 | 1 4 3 . . 3 5 6 . . . Drop 73 | . 2 9 . 8 5 23 20 1 5 . Fire 178 | . 49 13 3 . 35 53 20 5 . . Melee . | . . . . . . . . . . . Ram 1 | . . . . . . . . . 1 . Kick 1 | . . . . . . . . . 1 . Crush . | . . . . . . . . . . . Escape Stasis 16 | . . . . . . . 16 . . . Rewire . | . . . . . . . . . . . Trap . | . . . . . . . . . . . Miscellaneous . | . . . . . . . . . . . Route ------- -11/Scrapyard -10/Materials (discovered 2 exits: [*Mat] / [*Min]) -9/Materials -9/Mines -9/Exiles (discovered 2 exits: [*Min x2]) -8/Mines (discovered 2 exits: *Mat x2) -8/Materials -7/Factory (discovered 4 exits: [*Fac] / *Sto / Low x2) -7/Waste -7/Factory (discovered 2 exits: *Sto / *Low) -7/Lower Caves History --------- Turn | Location | Event 25 | -11/Scrapyard | Discovered new exit (range 16) 38 | -11/Scrapyard | Entered Materials 106 | -10/Materials | Discovered new exit (range 13) 313 | -10/Materials | Build established: Mutant 404 | -10/Materials | Discovered new exit (range 9) 411 | -10/Materials | Entered another Materials area 411 | -9/Materials | Evolved 2 slots: Weapon x2 580 | -9/Materials | Discovered new exit (range 13) 612 | -9/Materials | Met 8R-AWN 733 | -9/Materials | Entered Mines 737 | -9/Mines | Followed 8R-AWN into the Mines 823 | -9/Mines | Identified exit to Exiles 856 | -9/Mines | Entered Exiles 879 | -9/Exiles | Discovered new exit (range 15) 883 | -9/Exiles | Build established: Scavenger-Tank 895 | -9/Exiles | Welcomed by 8R-AWN 922 | -9/Exiles | Met EX-HEX 999 | -9/Exiles | Met EX-DEC 1013 | -9/Exiles | Learned location of Zion (-7) 1126 | -9/Exiles | Discovered new exit (range 14) 1324 | -9/Exiles | Visited The Gauntlet 1627 | -9/Exiles | Entered Mines 1873 | -8/Mines | Discovered new exit (range 12) 1915 | -8/Mines | Discovered new exit (range 13) 2348 | -8/Mines | Build established: Scavenger-Gunner 2449 | -8/Mines | Entered Materials 2449 | -8/Materials | Evolved 2 slots: Utility x2 2480 | -8/Materials | Central database locked down 3329 | -8/Materials | Destroyed 7 combat bots 3378 | -8/Materials | Build established: Gunner 3727 | -8/Materials | Discovered new exit (range 15) 3765 | -8/Materials | Entered Factory 3765 | -7/Factory | Evolved 2 slots: Propulsion x2 3886 | -7/Factory | Discovered new exit (range 15) 3920 | -7/Factory | Discovered new exit (range 8) 4008 | -7/Factory | System corruption reached 10% 4063 | -7/Factory | Build established: Scavenger-Sprinter 4151 | -7/Factory | Lost 3 parts (2p1w) 4207 | -7/Factory | Repaired Broken Imp. VTOL Module 4251 | -7/Factory | Identified exit to Storage 4251 | -7/Factory | Identified exit to Lower Caves 4270 | -7/Factory | Fabricated EM Disruption Field (x2) 4327 | -7/Factory | Sucked down chute 4327 | -7/Factory | Entered Waste 4328 | -7/Waste | Met a frightened Derelict 4342 | -7/Waste | EMP discharged 4349 | -7/Waste | Spotted C-40 Crusher 4349 | -7/Waste | Spotted C-40 Crusher 4364 | -7/Waste | Crushed by Compactor (1 part destroyed, 2 dropped) 4372 | -7/Waste | Crushed by Compactor (1 part destroyed, 1 dropped) 4379 | -7/Waste | Spotted C-40 Crusher 4379 | -7/Waste | Spotted C-40 Crusher 4379 | -7/Waste | Spotted C-40 Crusher 4391 | -7/Waste | Spotted C-40 Crusher 4393 | -7/Waste | Crushed by Compactor (1 part destroyed, 2 dropped) 4394 | -7/Waste | Core integrity fell below 50% 4400 | -7/Waste | Discovered new exit (range 16) 4408 | -7/Waste | Entered Factory 4424 | -7/Factory | Lost 3 parts (3n) 4496 | -7/Factory | Discovered exit to Storage (range 7) 4663 | -7/Factory | Build established: Hacker-Mutant 4745 | -7/Factory | Core integrity fell below 20% 4764 | -7/Factory | Discovered exit to Lower Caves (range 15) 4771 | -7/Factory | Entered Lower Caves 4775 | -7/Lower Caves | Destroyed by S-27 Virus with Autogun Last Messages --------------- System corrupted: Matter fused (-5). System corrupted: Heat flow error (+272). ALERT: Rogue bot located, Programmers report to Factory Zone 3P. Z,KRKT|GQLTEOHLWY,G=HL2LPE8LQ System corrupted: Heat flow error (+176). K-01 Serf cleans the Pressure Siphon. Dropped Corrupted Imp. Heat Sink. LVT WAR41RXSL>O#5YK T0ZAPT&B ,IR45 Acquired Cesium-ion Thruster. K-01 Serf cleans the Pressure Siphon. Dropped Imp. Shield Generator. Acquired Cesium-ion Thruster. Imp. Carbon-fiber Leg destroyed. Hvy. Assault Rifle destroyed. K-01 Serf cleans the Pressure Siphon. EXIT=FOUND: LOWER CAVES LOCATION=LOWER CAVES GOAL=ESCAPE Hacking Suite destroyed. Map ----- +----------------------------------------------------+ | ?????????????????????????????????????????????????? | | ?????????????????????????????????????????????????? | | ?????????????????????????????????????????????????? | | ?????????????????????????????????????????????????? | | ?????????????????????????????????????????????????? | | ?????????????????????????????????????????????????? | | ?????????????????????????????????????????????????? | | ?????????????????????????????????????????????????? | | ?????????????????????????????????????????????????? | | ?????????????????????????????????????????????????? | | ?????????????????????????????????????????????????? | | ?????????????????????????????????????????????????? | | ?????????????????????????????????????????????????? | | ?????????????##??????????????????????????????????? | | ????????????? ??????????????????????????????????? | | ?????????????# ??????????????????????????????????? | | ????????????## ??????????????????????????????????? | | ??????????### #?????????????????????????????????? | | ??????????? #????????????????????????????????? | | ???????????? ##???????????????????????????????? | | ????????????? ##??????????????????????????????? | | ?????????????? ???????????????????????????????? | | ??????????????# ?????????????#?????????????????? | | ??????????????# #??????????? #?????????????????? | | ?????????????## ########## #?????????????????? | | ?????????????# s @ #??????????????????? | | ?????????????# ##??????????????????? | | ?????????????## #############???????????????????? | | ??????????????####???????????????????????????????? | | ?????????????????????????????????????????????????? | | ?????????????????????????????????????????????????? | | ?????????????????????????????????????????????????? | | ?????????????????????????????????????????????????? | | ?????????????????????????????????????????????????? | | ?????????????????????????????????????????????????? | | ?????????????????????????????????????????????????? | | ?????????????????????????????????????????????????? | | ?????????????????????????????????????????????????? | | ?????????????????????????????????????????????????? | | ?????????????????????????????????????????????????? | | ?????????????????????????????????????????????????? | | ?????????????????????????????????????????????????? | | ?????????????????????????????????????????????????? | | ?????????????????????????????????????????????????? | | ?????????????????????????????????????????????????? | | ?????????????????????????????????????????????????? | | ?????????????????????????????????????????????????? | | ?????????????????????????????????????????????????? | | ?????????????????????????????????????????????????? | | ?????????????????????????????????????????????????? | +----------------------------------------------------+ Best States ------------- Heat Dissipation 67 Energy Generation 14 Energy Capacity 265 Matter Stores 300 Matter Capacity 300 Sight Range 16 Terrain Scan Range 16 Terrain Scan Density 10 ECM Strength 1 EM Shielding 2 Armor Coverage 150 Propulsion Shielding 33 Evasion (%) 64 Targeting Accuracy 16 Recoil Reduction 4 Matter Filtering 30 Kinecelleration 30 Offensive Hacking 20 Item Schematics ----------------- Imp. VTOL Module | -8/Materials | Scanalyzed Imp. EM Shotgun | -8/Materials | Scanalyzed Robot Schematics ------------------ None Fabricated ------------ EM Disruption Field | x2 | -7/Factory | Preloaded Alien Tech Used ----------------- None Achievements -------------- Everything Is Under Control Librarian Part-time Mechanic Party Time Challenges ------------ None Game ------ Seed TimingCoolingModule Manual? 0 Play Time 02:02:44 Cumulative 10.1 hours Start 2024.04.01 @ 16:48:22 End 2024.04.02 @ 13:20:54 Sessions 3 Manual Loads 0 Difficulty Rogue Special Mode None Game No. 9 Rogue 9 Adventurer 0 Explorer 0 Win Type - Total 0 Types 0/0/0/0/0/0/0/0/0 Lore% 6 Gallery% 9 Achievement% 11 Wizard Run 0 Options --------- Layout 1 ASCII 0 Keyboard 0 Movement Numpad Keybinds 0 Fullscreen 1 Font 24/Smallcaps Map View 50x35 Zoom Use 0% Tactical HUD 0 Map Filters NONE Filters NONE Steam 1 RUN: 33aaa1a9-983e-42cd-b73d-8f670b0efa97